fUSD/lending_fUSD_20241222
["ID","MTS","AMOUNT","RATE_DAILY","PERIOD"]
[346340259,1734899453519,-361.70545304,0.00019726,2]
[346340261,1734899453528,-804.28,0.00019726,2]
[346340263,1734899453537,-500.0,0.00019726,2]
[346340265,1734899453546,-500.0,0.00019726,2]
[346340267,1734899453556,-500.0,0.00019726,2]
[346340269,1734899453568,-500.0,0.00019726,2]
[346340271,1734899453578,-500.0,0.00019726,2]
[346340273,1734899453588,-500.0,0.00019726,2]
[346340275,1734899453599,-1603.77,0.00019726,2]
[346340277,1734899453608,-537.23,0.00019726,2]
[346340279,1734899453618,-150.0,0.00019726,2]
[346340281,1734899453628,-150.0,0.00019727,2]
[346340283,1734899453637,-150.0,0.00019728,2]
[346340285,1734899453646,-150.0,0.00019729,2]
[346340287,1734899453655,-150.0,0.00019731,2]
[346340289,1734899453664,-150.0,0.00019732,2]
[346340291,1734899453674,-150.0,0.00019733,2]
[346340293,1734899453684,-1500.0,0.00019736,2]
[346340295,1734899453693,-150.0,0.00019736,2]
[346340297,1734899453703,-150.0,0.00019746,2]
[346340299,1734899453712,-150.0,0.00019746,2]
[346340301,1734899453721,-150.0,0.00019748,2]
[346340303,1734899453733,-150.0,0.00019749,2]
[346340305,1734899453742,-150.0,0.00019752,2]
[346340307,1734899453752,-1500.0,0.00019753,2]
[346340309,1734899453761,-150.0,0.00019756,2]
[346340311,1734899453771,-150.0,0.00019761,2]
[346340313,1734899453780,-150.0,0.00019761,2]
[346340315,1734899453789,-150.0,0.00019764,2]
[346340317,1734899453798,-150.0,0.00019768,2]
[346340318,1734899453808,-150.0,0.0001977,2]
[346340320,1734899453821,-150.0,0.00019771,2]
[346340322,1734899453831,-703.53,0.00019773,2]
[346340324,1734899453840,-150.0,0.00019774,2]
[346340326,1734899453852,-29877.32237753,0.00019775,2]
[346340328,1734899453862,-1080.450673,0.00019775,2]
[346340331,1734899453871,-4264.096,0.00019776,2]
[346340332,1734899453880,-165.055,0.00019776,2]
[346340334,1734899453889,-150.0,0.00019776,2]
[346340336,1734899453898,-150.0,0.00019776,2]
[346340338,1734899453907,-150.0,0.00019777,2]
[346340340,1734899453916,-150.0,0.00019777,2]
[346340342,1734899453925,-150.0,0.00019779,2]
[346340344,1734899453935,-418.53440087,0.00019781,2]
[346340346,1734899453943,-150.0,0.00019782,2]
[346340348,1734899453952,-150.0,0.00019782,2]
[346340350,1734899453961,-150.0,0.00019782,2]
[346340352,1734899453970,-150.0,0.00019786,2]
[346340354,1734899453979,-150.0,0.00019786,2]
[346340356,1734899453992,-150.0,0.00019789,2]
[346340358,1734899454001,-1500.0,0.0001979,2]
[346340360,1734899454010,-500.0,0.0001979,2]
[346340362,1734899454020,-150.0,0.00019792,2]
[346340364,1734899454030,-1500.0,0.00019793,2]
[346340366,1734899454040,-150.0,0.00019796,2]
[346340368,1734899454049,-400.0,0.000198,7]
[346340370,1734899454057,-365.0,0.000198,2]
[346340372,1734899454068,-1000.0,0.000198,2]
[346340374,1734899454078,-150.0,0.00019802,2]
[346340376,1734899454087,-150.0,0.00019803,2]
[346340378,1734899454095,-150.0,0.00019803,2]
[346340380,1734899454105,-150.0,0.00019804,2]
[346340382,1734899454114,-150.0,0.00019819,2]
[346340384,1734899454123,-150.0,0.00019825,2]
[346340386,1734899454132,-150.0,0.00019829,2]
[346340388,1734899454141,-150.0,0.00019829,2]
[346340390,1734899454149,-150.0,0.00019831,2]
[346340392,1734899454159,-1500.0,0.00019832,2]
[346340394,1734899454169,-150.0,0.00019835,2]
[346340396,1734899454178,-150.0,0.00019836,2]
[346340398,1734899454188,-150.0,0.00019837,2]
[346340400,1734899454198,-1500.0,0.00019838,2]
[346340402,1734899454207,-150.0,0.00019843,2]
[346340404,1734899454217,-150.0,0.00019848,2]
[346340406,1734899454226,-1500.0,0.0001985,2]
[346340408,1734899454235,-150.0,0.0001985,2]
[346340410,1734899454245,-1500.0,0.00019856,2]
[346340412,1734899454253,-150.0,0.00019863,2]
[346340414,1734899454262,-150.0,0.00019863,2]
[346340416,1734899454271,-150.0,0.00019868,2]
[346340418,1734899454280,-1500.0,0.00019869,2]
[346340420,1734899454289,-406.82461251,0.0001987,2]
[346340422,1734899454298,-150.0,0.00019871,2]
[346340424,1734899454308,-1500.0,0.00019872,2]
[346340426,1734899454317,-150.0,0.00019872,2]
[346340428,1734899454326,-150.0,0.00019874,2]
[346340430,1734899454335,-150.0,0.00019875,2]
[346340431,1734899454344,-150.0,0.00019875,2]
[346340432,1734899454353,-150.0,0.00019876,2]
[346340433,1734899454362,-150.0,0.00019876,2]
[346340434,1734899454371,-150.0,0.00019876,2]
[346340435,1734899454380,-150.0,0.00019877,2]
[346340436,1734899454389,-150.0,0.00019877,2]
[346340437,1734899454398,-150.0,0.0001988,2]
[346340438,1734899454407,-150.0,0.00019881,2]
[346340439,1734899454416,-150.0,0.00019888,2]
[346340440,1734899454425,-200.0,0.00019892,2]
[346340441,1734899454434,-2000.0,0.00019892,2]
[346340442,1734899454444,-200.0,0.00019892,2]
[346340443,1734899454453,-150.0,0.00019894,2]
[346340444,1734899454462,-150.0,0.00019894,2]
[346340445,1734899454471,-150.0,0.00019896,2]
[346340446,1734899454480,-150.0,0.00019896,2]
[346340447,1734899454489,-22291.9010912,0.000199,2]
[346340449,1734899454498,-4978.94755514,0.000199,2]
[346340451,1734899454507,-500.0,0.000199,2]
[346340453,1734899454516,-500.0,0.000199,2]
[346340455,1734899454525,-500.0,0.000199,2]
[346340457,1734899454534,-500.0,0.000199,2]
[346340459,1734899454543,-500.0,0.000199,2]
[346340461,1734899454552,-439.1844,0.000199,2]
[346340463,1734899454561,-1000.0,0.000199,2]
[346340465,1734899454570,-1000.0,0.000199,2]
[346340466,1734899454579,-1000.0,0.000199,2]
[346340468,1734899454588,-1000.0,0.000199,2]
[346340470,1734899454597,-1000.0,0.000199,2]
[346340472,1734899454606,-1000.0,0.000199,2]
[346340474,1734899454615,-1000.0,0.000199,2]
[346340476,1734899454625,-1000.0,0.000199,2]
[346340478,1734899454634,-1000.0,0.000199,2]
[346340480,1734899454644,-1000.0,0.000199,2]
[346340482,1734899454653,-1000.0,0.000199,2]
[346340484,1734899454662,-1000.0,0.000199,2]
[346340486,1734899454672,-1000.0,0.000199,2]
[346340488,1734899454681,-1000.0,0.000199,2]
[346340490,1734899454690,-1000.0,0.000199,2]
[346340492,1734899454699,-1000.0,0.000199,2]
[346340494,1734899454708,-1000.0,0.000199,2]
[346340496,1734899454718,-1000.0,0.000199,2]
[346340498,1734899454727,-1000.0,0.000199,2]
[346340500,1734899454738,-1000.0,0.000199,2]
[346340502,1734899454747,-1000.0,0.000199,2]
[346340504,1734899454756,-1000.0,0.000199,2]
[346340506,1734899454765,-1000.0,0.000199,2]
[346340508,1734899454774,-1000.0,0.000199,2]
[346340510,1734899454783,-1000.0,0.000199,2]
[346340512,1734899454792,-1000.0,0.000199,2]
[346340514,1734899454801,-1000.0,0.000199,2]
[346340516,1734899454810,-1000.0,0.000199,2]
[346340518,1734899454821,-1000.0,0.000199,2]
[346340520,1734899454830,-1000.0,0.000199,2]
[346340522,1734899454839,-1000.0,0.000199,2]
[346340524,1734899454848,-1000.0,0.000199,2]
[346340526,1734899454857,-1000.0,0.000199,2]
[346340528,1734899454867,-1000.0,0.000199,2]
[346340530,1734899454875,-1000.0,0.000199,2]
[346340532,1734899454884,-1000.0,0.000199,2]
[346340534,1734899454893,-1000.0,0.000199,2]
[346340536,1734899454902,-1000.0,0.000199,2]
[346340537,1734899454911,-1000.0,0.000199,2]
[346340539,1734899454920,-1000.0,0.000199,2]
[346340541,1734899454929,-1000.0,0.000199,2]
[346340543,1734899454938,-1000.0,0.000199,2]
[346340545,1734899454948,-910.1208,0.000199,2]
[346340547,1734899454957,-400.0,0.000199,7]
[346340549,1734899454966,-3200.0,0.000199,2]
[346340551,1734899454975,-150.0,0.00019902,2]
[346340554,1734899454988,-150.0,0.00019903,2]
[346340555,1734899454998,-150.0,0.00019907,2]
[346340557,1734899455007,-150.0,0.00019907,2]
[346340560,1734899455017,-150.0,0.00019907,2]
[346340561,1734899455028,-150.0,0.00019909,2]
[346340563,1734899455037,-703.53,0.0001991,2]
[346340565,1734899455046,-150.0,0.0001991,2]
[346340567,1734899455055,-1500.0,0.0001991,2]
[346340569,1734899455066,-150.0,0.00019915,2]
[346340571,1734899455075,-150.0,0.00019915,2]
[346340573,1734899455085,-150.0,0.00019918,2]
[346340576,1734899455094,-150.0,0.0001992,2]
[346340578,1734899455104,-150.0,0.00019921,2]
[346340580,1734899455114,-150.0,0.00019923,2]
[346340581,1734899455122,-150.0,0.00019924,2]
[346340584,1734899455132,-150.0,0.00019924,2]
[346340586,1734899455141,-150.0,0.00019925,2]
[346340588,1734899455151,-150.0,0.00019928,2]
[346340589,1734899455160,-1500.0,0.00019936,2]
[346340591,1734899455170,-150.0,0.00019936,2]
[346340593,1734899455180,-150.0,0.00019938,2]
[346340596,1734899455190,-150.0,0.00019941,2]
[346340598,1734899455199,-150.0,0.00019941,2]
[346340600,1734899455209,-150.0,0.00019941,2]
[346340602,1734899455218,-150.0,0.00019942,2]
[346340618,1734899455365,-150.0,0.00019946,2]
[346340620,1734899455375,-150.0,0.0001995,2]
[346340622,1734899455384,-150.0,0.00019951,2]
[346340624,1734899455394,-150.0,0.00019951,2]
[346340626,1734899455403,-1201.9,0.00019954,2]
[346340628,1734899455413,-150.0,0.00019956,2]
[346340630,1734899455422,-150.0,0.00019959,2]
[346340632,1734899455431,-1500.0,0.00019959,2]
[346340634,1734899455441,-151.4503723,0.00019961,2]
[346340636,1734899455450,-150.0,0.00019963,2]
[346340638,1734899455459,-150.0,0.00019968,2]
[346340639,1734899455468,-1500.0,0.00019972,2]
[346340641,1734899455478,-150.0,0.00019972,2]
[346340643,1734899455487,-159.71631024,0.00019973,2]
[346340645,1734899455496,-500.0,0.00019973,2]
[346340647,1734899455505,-500.0,0.00019973,2]
[346340649,1734899455514,-504.82459546,0.00019973,2]
[346340651,1734899455523,-500.20297702,0.00019973,2]
[346340653,1734899455533,-500.0,0.00019973,2]
[346340655,1734899455542,-1067.31,0.00019973,2]
[346340657,1734899455551,-1500.0,0.00019977,2]
[346340659,1734899455561,-150.0,0.00019978,2]
[346340661,1734899455575,-7056.60924323,0.0001998,2]
[346340664,1734899455585,-150.0,0.00019981,2]
[346340666,1734899455595,-150.0,0.00019983,2]
[346340668,1734899455604,-150.0,0.00019987,2]
[346340670,1734899455614,-150.0,0.00019987,2]
[346340671,1734899455624,-3182.07467526,0.0001999,4]
[346340673,1734899455633,-470.115039,0.00019996,2]
[346340675,1734899455643,-677.66189521,0.00019996,2]
[346340677,1734899455652,-2407.0275231,0.00019996,2]
[346340679,1734899455662,-2301.6825912,0.00019996,2]
[346340681,1734899455671,-513026.20560078,0.00019997,2]
[346340683,1734899455681,-300.0,0.00019999,2]
[346340685,1734899455690,-1000.0,0.00019999,3]
[346340687,1734899455700,-1000.0,0.00019999,2]
[346340689,1734899455709,-5140.68,0.00019999,2]
[346340691,1734899455718,-500.0,0.00019999,2]
[346340693,1734899455728,-500.0,0.00019999,2]
[346340695,1734899455740,-1000.0,0.00019999,2]
[346340697,1734899455750,-639.91,0.00019999,2]
[346340699,1734899455760,-500.0,0.00019999,2]
[346340702,1734899455770,-1874.83,0.00019999,2]
[346340704,1734899455781,-2112.61,0.00019999,2]
[346340706,1734899455790,-7939038.85838615,0.0002,2]
[346340708,1734899455800,-11698.9608648,0.0002,2]
[346340710,1734899455809,-8026.13592569,0.0002,2]
[346340712,1734899455824,-2052.05070564,0.0002,2]
[346340714,1734899455833,-811.98693779,0.0002,2]
[346340716,1734899455843,-1000.0,0.0002,2]
[346340718,1734899455852,-1000.0,0.0002,2]
[346340720,1734899455862,-1000.0,0.0002,2]
[346340722,1734899455871,-1000.0,0.0002,2]
[346340724,1734899455880,-1000.0,0.0002,2]
[346340726,1734899455889,-1000.0,0.0002,2]
[346340728,1734899455898,-1000.0,0.0002,2]
[346340730,1734899455907,-1000.0,0.0002,2]
[346340732,1734899455916,-1000.0,0.0002,2]
[346340733,1734899455925,-1000.0,0.0002,2]
[346340735,1734899455934,-1000.0,0.0002,2]
[346340737,1734899455943,-1000.0,0.0002,2]
[346340739,1734899455952,-1000.0,0.0002,2]
[346340741,1734899455962,-1000.0,0.0002,2]
[346340743,1734899455971,-1000.0,0.0002,2]
[346340745,1734899455981,-1000.0,0.0002,2]
[346340747,1734899455994,-1000.0,0.0002,2]
[346340749,1734899456004,-1000.0,0.0002,2]
[346340751,1734899456013,-1000.0,0.0002,2]
[346340754,1734899456023,-1000.0,0.0002,2]
[346340755,1734899456034,-1000.0,0.0002,2]
[346340758,1734899456044,-1000.0,0.0002,2]
[346340759,1734899456054,-1000.0,0.0002,2]
[346340761,1734899456065,-1000.0,0.0002,2]
[346340764,1734899456076,-1000.0,0.0002,2]
[346340766,1734899456085,-217.14106938,0.0002,2]
[346340767,1734899456095,-202.6,0.0002,2]
[346340769,1734899456104,-202.6,0.0002,2]
[346340772,1734899456114,-2110.0,0.0002,2]
[346340773,1734899456123,-2000.0,0.0002,2]
[346340776,1734899456133,-1162.0,0.0002,7]
[346340778,1734899456144,-500.0,0.0002,2]
[346340780,1734899456153,-500.0,0.0002,2]
[346340781,1734899456162,-500.0,0.0002,2]
[346340783,1734899456171,-500.0,0.0002,2]
[346340785,1734899456180,-500.0,0.0002,2]
[346340787,1734899456190,-500.0,0.0002,2]
[346340789,1734899456199,-232.7,0.0002,2]
[346340791,1734899456209,-500.0,0.0002,2]
[346340793,1734899456218,-252.64,0.0002,2]
[346340795,1734899456227,-376.25,0.0002,2]
[346340796,1734899456237,-484.480735,0.0002,2]
[346340798,1734899456246,-500.0,0.0002,2]
[346340800,1734899456255,-1044.442115,0.0002,2]
[346340801,1734899456264,-500.0,0.0002,2]
[346340803,1734899456274,-999.0,0.0002,7]
[346340805,1734899456283,-999.0,0.0002,7]
[346340807,1734899456292,-999.0,0.0002,7]
[346340809,1734899456301,-999.0,0.0002,7]
[346340810,1734899456310,-999.0,0.0002,7]
[346340812,1734899456324,-999.0,0.0002,7]
[346340814,1734899456333,-999.0,0.0002,7]
[346340815,1734899456342,-999.0,0.0002,7]
[346340817,1734899456351,-999.0,0.0002,7]
[346340819,1734899456360,-999.0,0.0002,7]
[346340821,1734899456370,-999.0,0.0002,7]
[346340823,1734899456379,-999.0,0.0002,7]
[346340824,1734899456388,-999.0,0.0002,7]
[346340826,1734899456396,-477.17673668,0.0002,7]
[346340828,1734899456406,-500.0,0.0002,2]
[346340830,1734899456416,-500.0,0.0002,2]
[346340831,1734899456425,-500.0,0.0002,2]
[346340833,1734899456434,-500.0,0.0002,2]
[346340835,1734899456443,-500.0,0.0002,2]
[346340837,1734899456452,-500.0,0.0002,2]
[346340838,1734899456461,-155.70045,0.0002,2]
[346340840,1734899456470,-500.0,0.0002,2]
[346340842,1734899456479,-500.0,0.0002,2]
[346340844,1734899456488,-500.0,0.0002,2]
[346340846,1734899456498,-500.0,0.0002,2]
[346340848,1734899456507,-500.0,0.0002,2]
[346340849,1734899456516,-500.0,0.0002,2]
[346340851,1734899456526,-234.96,0.0002,2]
[346340853,1734899456535,-500.0,0.0002,2]
[346340855,1734899456544,-500.0,0.0002,2]
[346340857,1734899456554,-582.93,0.0002,2]
[346340859,1734899456564,-240.69,0.0002,2]
[346340860,1734899456575,-500.0,0.0002,2]
[346340862,1734899456585,-500.0,0.0002,2]
[346340864,1734899456593,-500.0,0.0002,2]
[346340865,1734899456603,-272.60930933,0.0002,2]
[346340867,1734899456612,-500.0,0.0002,2]
[346340869,1734899456623,-500.0,0.0002,2]
[346340871,1734899456633,-500.0,0.0002,2]
[346340872,1734899456642,-500.0,0.0002,2]
[346340874,1734899456652,-436.59,0.0002,2]
[346340876,1734899456661,-152.54903367,0.0002,2]
[346340878,1734899456670,-150.0,0.0002,2]
[346340880,1734899456679,-168.5351581,0.0002,2]
[346340882,1734899456688,-150.0,0.0002,2]
[346340883,1734899456698,-500.0,0.0002,2]
[346340885,1734899456707,-500.0,0.0002,2]
[346340887,1734899456717,-1961.37,0.0002,2]
[346340888,1734899456726,-500.0,0.0002,2]
[346340890,1734899456736,-381.18039665,0.0002,2]
[346340892,1734899456746,-434.22474073,0.0002,2]
[346340894,1734899456756,-500.0,0.0002,2]
[346340896,1734899456765,-500.0,0.0002,2]
[346340898,1734899456774,-336.26641233,0.0002,2]
[346340899,1734899456783,-272.63190286,0.0002,2]
[346340901,1734899456793,-500.0,0.0002,2]
[346340903,1734899456802,-537.29,0.0002,2]
[346340905,1734899456811,-500.0,0.0002,2]
[346340907,1734899456824,-500.0,0.0002,2]
[346340909,1734899456834,-500.0,0.0002,2]
[346340910,1734899456843,-500.0,0.0002,2]
[346340912,1734899456852,-500.0,0.0002,2]
[346340914,1734899456862,-500.0,0.0002,2]
[346340916,1734899456870,-500.0,0.0002,2]
[346340918,1734899456880,-500.0,0.0002,2]
[346340920,1734899456889,-282.84,0.0002,2]
[346340921,1734899456899,-179.02823339,0.0002,2]
[346340923,1734899456909,-500.0,0.0002,2]
[346340925,1734899456917,-615.82,0.0002,2]
[346340927,1734899456927,-561.51,0.0002,2]
[346340929,1734899456936,-502.52,0.0002,2]
[346340931,1734899456944,-500.0,0.0002,2]
[346340932,1734899456953,-305.26150005,0.0002,2]
[346340934,1734899456962,-500.0,0.0002,2]
[346340936,1734899456971,-245.4,0.0002,2]
[346340938,1734899456980,-500.0,0.0002,2]
[346340940,1734899456993,-165.45,0.0002,2]
[346340942,1734899457002,-500.0,0.0002,2]
[346340943,1734899457011,-500.0,0.0002,2]
[346340945,1734899457021,-500.0,0.0002,2]
[346340947,1734899457030,-612.26,0.0002,2]
[346340949,1734899457040,-500.0,0.0002,2]
[346340951,1734899457050,-527.0,0.0002,2]
[346340953,1734899457059,-500.0,0.0002,2]
[346340955,1734899457071,-500.0,0.0002,2]
[346340957,1734899457081,-500.0,0.0002,2]
[346340958,1734899457090,-500.0,0.0002,2]
[346340960,1734899457099,-911.0,0.0002,2]
[346340962,1734899457108,-500.0,0.0002,2]
[346340964,1734899457118,-500.0,0.0002,2]
[346340966,1734899457127,-500.0,0.0002,2]
[346340967,1734899457136,-299.28,0.0002,2]
[346340969,1734899457145,-500.0,0.0002,2]
[346340971,1734899457154,-500.0,0.0002,2]
[346340973,1734899457162,-3801.15,0.0002,2]
[346340975,1734899457172,-604.62,0.0002,2]
[346340977,1734899457181,-500.0,0.0002,2]
[346340978,1734899457190,-500.0,0.0002,2]
[346340980,1734899457199,-500.0,0.0002,2]
[346340982,1734899457208,-500.0,0.0002,2]
[346340984,1734899457217,-500.0,0.0002,2]
[346340986,1734899457226,-500.0,0.0002,2]
[346340988,1734899457235,-500.0,0.0002,2]
[346340989,1734899457244,-500.0,0.0002,2]
[346340991,1734899457253,-503.39,0.0002,2]
[346340993,1734899457262,-500.0,0.0002,2]
[346340995,1734899457271,-500.0,0.0002,2]
[346340997,1734899457280,-500.0,0.0002,2]
[346340999,1734899457289,-500.0,0.0002,2]
[346341000,1734899457298,-500.0,0.0002,2]
[346341002,1734899457307,-150.0,0.0002,4]
[346341004,1734899457317,-500.0,0.0002,2]
[346341006,1734899457326,-150.0,0.0002,4]
[346341008,1734899457336,-500.0,0.0002,2]
[346341010,1734899457346,-500.0,0.0002,2]
[346341012,1734899457355,-756.31,0.0002,2]
[346341013,1734899457364,-500.0,0.0002,2]
[346341015,1734899457372,-150.0,0.0002,4]
[346341017,1734899457382,-552.87051415,0.0002,2]
[346341019,1734899457390,-416.97798538,0.0002,2]
[346341021,1734899457399,-500.0,0.0002,2]
[346341022,1734899457408,-500.0,0.0002,2]
[346341024,1734899457417,-500.0,0.0002,2]
[346341026,1734899457426,-500.0,0.0002,2]
[346341028,1734899457435,-500.0,0.0002,2]
[346341030,1734899457444,-500.0,0.0002,2]
[346341032,1734899457453,-500.0,0.0002,2]
[346341034,1734899457462,-500.0,0.0002,2]
[346341035,1734899457471,-27180.1709375,0.0002,60]
[346341037,1734899457480,-500.0,0.0002,2]
[346341039,1734899457489,-3392.6406025,0.0002,2]
[346341041,1734899457498,-500.0,0.0002,2]
[346341043,1734899457507,-13130.6118413,0.0002,10]
[346341045,1734899457516,-500.0,0.0002,2]
[346341046,1734899457525,-500.0,0.0002,2]
[346341048,1734899457533,-500.0,0.0002,2]
[346341050,1734899457542,-500.0,0.0002,2]
[346341052,1734899457551,-500.0,0.0002,2]
[346341054,1734899457561,-500.0,0.0002,2]
[346341056,1734899457574,-500.0,0.0002,2]
[346341058,1734899457583,-500.0,0.0002,2]
[346341059,1734899457592,-500.0,0.0002,2]
[346341061,1734899457602,-500.0,0.0002,2]
[346341076,1734899457728,-500.0,0.0002,2]
[346341078,1734899457750,-500.0,0.0002,2]
[346341080,1734899457759,-500.0,0.0002,2]
[346341082,1734899457769,-260.14,0.0002,2]
[346341084,1734899457779,-766.17,0.0002,2]
[346341086,1734899457788,-500.0,0.0002,2]
[346341088,1734899457798,-500.0,0.0002,2]
[346341090,1734899457807,-500.0,0.0002,2]
[346341092,1734899457818,-2145.28863114,0.0002,2]
[346341094,1734899457827,-500.0,0.0002,2]
[346341096,1734899457836,-524.01,0.0002,2]
[346341098,1734899457845,-500.0,0.0002,2]
[346341100,1734899457854,-2145.28863114,0.0002,2]
[346341102,1734899457863,-1366.49,0.0002,2]
[346341104,1734899457872,-65344.39489571,0.0002,2]
[346341106,1734899457882,-2145.28863114,0.0002,2]
[346341108,1734899457891,-500.0,0.0002,2]
[346341110,1734899457900,-917.42,0.0002,2]
[346341112,1734899457909,-500.0,0.0002,2]
[346341114,1734899457918,-2145.28863114,0.0002,2]
[346341116,1734899457927,-500.0,0.0002,2]
[346341118,1734899457936,-500.0,0.0002,2]
[346341120,1734899457945,-500.0,0.0002,2]
[346341122,1734899457954,-563.44,0.0002,2]
[346341124,1734899457963,-500.0,0.0002,2]
[346341125,1734899457972,-500.0,0.0002,2]
[346341127,1734899457981,-500.0,0.0002,2]
[346341129,1734899457994,-500.0,0.0002,2]
[346341131,1734899458003,-500.0,0.0002,2]
[346341133,1734899458012,-500.0,0.0002,2]
[346341135,1734899458022,-565.6,0.0002,2]
[346341137,1734899458035,-500.0,0.0002,2]
[346341139,1734899458044,-2145.28863114,0.0002,2]
[346341141,1734899458055,-3030.0,0.0002,2]
[346341144,1734899458065,-500.0,0.0002,2]
[346341145,1734899458075,-1094.75,0.0002,2]
[346341147,1734899458084,-1016.95,0.0002,2]
[346341149,1734899458094,-500.0,0.0002,2]
[346341151,1734899458103,-1389.03899863,0.0002,5]
[346341153,1734899458112,-2103.77,0.0002,2]
[346341154,1734899458121,-500.0,0.0002,2]
[346341155,1734899458129,-500.0,0.0002,2]
[346341156,1734899458138,-158.0,0.0002,2]
[346341157,1734899458147,-500.0,0.0002,2]
[346341158,1734899458157,-2424.78,0.0002,2]
[346341159,1734899458166,-873.71,0.0002,2]
[346341160,1734899458175,-500.0,0.0002,2]
[346341161,1734899458183,-2817.01,0.0002,2]
[346341162,1734899458192,-500.0,0.0002,2]
[346341163,1734899458201,-31101.9081994,0.0002,2]
[346341164,1734899458210,-954.0,0.0002,2]
[346341165,1734899458219,-699.61,0.0002,2]
[346341166,1734899458228,-1254.14,0.0002,2]
[346341167,1734899458236,-500.0,0.0002,2]
[346341168,1734899458245,-500.0,0.0002,2]
[346341169,1734899458255,-2414.81,0.0002,2]
[346341170,1734899458264,-561.81,0.0002,2]
[346341171,1734899458273,-532.29,0.0002,2]
[346341172,1734899458282,-500.0,0.0002,2]
[346341173,1734899458291,-7500.0,0.0002,2]
[346341174,1734899458300,-3822.01839656,0.0002,2]
[346341175,1734899458309,-851.36,0.0002,2]
[346341176,1734899458320,-500.0,0.0002,2]
[346341177,1734899458329,-14562.18,0.0002,2]
[346341178,1734899458338,-102976.38601718,0.0002,2]
[346341179,1734899458347,-500.0,0.0002,2]
[346341180,1734899458357,-887.95,0.0002,2]
[346341181,1734899458366,-4166.58696057,0.0002,2]
[346341182,1734899458375,-94630.56544987,0.0002,4]
[346341183,1734899458384,-500.0,0.0002,2]
[346341184,1734899458394,-1582.16,0.0002,2]
[346341185,1734899458403,-500.0,0.0002,2]
[346341186,1734899458412,-2652.31,0.0002,2]
[346341188,1734899458421,-3950.0,0.0002,2]
[346341189,1734899458430,-1120.88,0.0002,2]
[346341191,1734899458439,-500.0,0.0002,2]
[346341192,1734899458448,-500.0,0.0002,2]
[346341194,1734899458457,-500.0,0.0002,2]
[346341195,1734899458465,-56963.13170792,0.0002,2]
[346341197,1734899458474,-18751.42,0.0002,2]
[346341199,1734899458483,-500.0,0.0002,2]